Cogmind - Beta 13 @@@ ROGUE MODE // 2024.04.22 @ 19:14:50 Player: Gertrude Result: Self-destructed Performance ------------- Evolutions (1) 500 Regions Visited (2) 400 Robots Destroyed (32) 160 Value Destroyed (748) 748 Prototype IDs (4) 80 Alien Tech Used (0) 0 Bonus (0) 0 TOTAL SCORE: 1888 Bonus ------- None Cogmind --------- Core Integrity 321/400 Matter 300/300 Energy 25/100 System Corruption 0% Temperature Cool (54) Movement Hovering (180) Ox2 Location -9/Materials Parts ------- > --- POWER (1) -------- (None) > --- PROPULSION (3) --- Hover Unit > --- UTILITY (3) ------ Heat Sink Small Storage Unit Core Shielding > --- WEAPON (2) ------- Advanced Beam Cannon Advanced Beam Cannon > --- INVENTORY (8) ---- Light Ion Engine Wheel Wheel Hardened Medium Armor Plating Improved Assault Rifle Light Cannon Peak State ------------ > --- POWER ------------ Light Ion Engine > --- PROPULSION ------- Hover Unit Hover Unit Improved Flight Unit > --- UTILITY ---------- Small Storage Unit Core Shielding > --- WEAPON ----------- Advanced Beam Cannon Advanced Beam Cannon > --- INVENTORY -------- Light Ion Engine Wheel Wheel Hover Unit Hardened Medium Armor Plating Improved Assault Rifle Light Cannon [Rating: 15] Favorites ----------- Power Light Ion Engine Engine Light Ion Engine Propulsion Hover Unit Wheel Compact Wheel Hover Unit Hover Unit Flight Unit Improved Flight Unit Utility Small Storage Unit Device Heat Sink Storage Small Storage Unit Protection Core Shielding Weapon Light Assault Rifle Energy Gun Improved EM Shotgun Energy Cannon Advanced Beam Cannon Ballistic Gun Light Assault Rifle Ballistic Cannon Light Cannon Build | -11 -10 -9 ------- Run | Yrd Mat Mat Slots Evolved 2 | . . 2 Power . | . . . Propulsion 1 | . . 1 Utility 1 | . . 1 Weapon . | . . . Parts Attached 25 | 6 7 12 Power 3 | 1 2 . Engine 3 | 1 2 . Core . | . . . Reactor . | . . . Propulsion 8 | 2 3 3 Treads . | . . . Leg . | . . . Wheel 3 | 2 1 . Hover 4 | . 2 2 Flight 1 | . . 1 Utility 4 | 1 . 3 Device 1 | . . 1 Storage 1 | 1 . . Processor . | . . . Hackware . | . . . Protection 2 | . . 2 Artifact . | . . . Weapon 10 | 2 2 6 Energy Gun 1 | . . 1 Energy Cannon 3 | . . 3 Ballistic Gun 4 | 2 1 1 Ballistic Cannon 2 | . 1 1 Launcher . | . . . Special Weapon . | . . . Impact Weapon . | . . . Slashing Weapon . | . . . Piercing Weapon . | . . . Special Melee Weapon . | . . . Unidentified Prototypes 4 | . . 4 Parts Lost 5 | . 2 3 Power 2 | . 1 1 Propulsion 3 | . 1 2 Utility . | . . . Weapon . | . . . Highest Loss Streak 3 | . 1 3 To Critical Strikes . | . . . Average Slot Usage (%) 81 | . 81 81 Engine 11 | . 12 10 Wheel 9 | . 15 . Hover 18 | . 10 29 Device 1 | . . 3 Storage 12 | . 14 11 Protection 2 | . . 5 Energy Cannon 5 | . . 14 Ballistic Gun 15 | . 22 4 Ballistic Cannon 4 | . 5 4 Naked Turns . | . . . Heaviest Build 18 | 13 13 18 Greatest Support 26 | 26 26 18 Greatest Overweight (x) 2 | . . 2 Average Overweight (x) . | . . . Largest Inventory Capacity 8 | 8 8 8 Average Capacity 7 | 7 8 8 Most Carried 8 | 3 8 8 Average Carried 5 | 1 5 7 Final Capacity 8 | 8 8 8 Final Carried 8 | 2 8 6 Class Distribution -------------------- 67% | Mutant 32% | Scavenger-Mutant Dominant Class ---------------- Mutant | -10/Materials Scavenger-Mutant | -9/Materials Resources | -11 -10 -9 ----------- Run | Yrd Mat Mat Matter Collected 682 | 224 299 159 Remotely . | . . . Salvage Created 992 | . 549 443 Parts 65 | . 35 30 Haulers Intercepted 2 | . 1 1 Recyclers Shooed . | . . . Parts Field Recycled . | . . . Retrieved Matter . | . . . Parts Self-Destructed . | . . . Prevented . | . . . Kills | -11 -10 -9 ------- Run | Yrd Mat Mat Combat Hostiles Destroyed 24 | . 14 10 Guns 14 | . 13 1 Cannons 10 | . 1 9 Classes Destroyed 7 | . 5 2 Tunneler 1 | . 1 . Hauler 2 | . 1 1 Watcher 5 | . 3 2 Swarmer 9 | . 6 3 Grunt 12 | . 8 4 Brawler 1 | . . 1 Sentry 2 | . . 2 Best Kill Streak 7 | . 7 4 Combat Bots Only 4 | . 4 4 Max Kills in Single Turn 2 | . 1 2 Gunslinging . | . . . Exploded . | . . . Melee . | . . . Uniques/NPCs Destroyed . | . . . Combat | -11 -10 -9 -------- Run | Yrd Mat Mat Hostile Shots Fired 90 | . 57 33 Missed 19 | . 13 6 Damage Taken 745 | . 457 288 Core 200 | . 121 79 Absorbed by Shields . | . . . Redirected to Shielding 10 | . . 10 Regen/Repaired (Parts) 11 | . 11 . Core Remaining (%) 75 | 100 51 . Volleys Fired 85 | . 49 36 Largest 2 | . 2 2 Hottest 136 | . 55 136 Shots Fired 165 | . 98 67 Gun 98 | . 92 6 Cannon 67 | . 6 61 Launcher . | . . . Special . | . . . Kinetic 110 | . 98 12 Thermal 55 | . . 55 Explosive . | . . . Electromagnetic . | . . . Robot Hit Streak 7 | . 7 7 Robot Miss Streak 8 | . 5 8 Penetration Max . | . . . Secondary Targets 2 | . 2 . Max Gunslinging Chain 1 | . 1 . Shots Hit Robots 88 | . 52 36 Core Hits 44 | . 30 14 Critical Kills . | . . . Critical Parts Destroyed 1 | . 1 . Critical Strikes 1 | . 1 . Destroy 1 | . 1 . Melee Attacks . | . . . Impact . | . . . Slashing . | . . . Piercing . | . . . Sneak Attacks . | . . . Combat Hostiles . | . . . Follow-up Attacks . | . . . Damage Inflicted 1388 | . 671 717 Guns 679 | . 585 94 Cannons 689 | . 86 603 Explosions . | . . . Melee . | . . . Ramming 20 | . . 20 Kinetic 816 | . 671 145 Thermal 552 | . . 552 Explosive . | . . . Electromagnetic . | . . . Impact . | . . . Slashing . | . . . Piercing . | . . . Highest Corruption . | . . . Average Corruption . | . . . Corruption Purged . | . . . Corruption Blocked . | . . . Overload Shots . | . . . Overflow Damage 12 | . . 12 Projectiles 12 | . . 12 Explosions . | . . . Melee . | . . . Knockbacks . | . . . Impact . | . . . Kinetic . | . . . Secondary . | . . . Self-Inflicted Damage 9 | . . 9 Shots . | . . . Rammed 2 | . . 2 Targets Rammed 2 | . . 2 Kicked . | . . . Crushed . | . . . Highest Temperature 618 | . 48 618 Average Temperature 158 | . 12 202 Received Heat Transfer 249 | . 186 63 Effects 14 | . . 14 Shutdowns 4 | . . 4 Energy Bleed 1 | . . 1 Interference 3 | . . 3 Damage (minor) 1 | . . 1 Damage (major) 5 | . . 5 Siege Activations . | . . . Robots Corrupted . | . . . Combat Hostiles . | . . . Parts Fried . | . . . Impact Corruptions . | . . . Robots Melted . | . . . Combat Hostiles . | . . . Parts Melted 1 | . . 1 Heat Transferred 999 | . . 999 Parts Sabotaged . | . . . Parts Stolen . | . . . Parts Stripped . | . . . Power Chain Reactions . | . . . Alert | -11 -10 -9 ------- Run | Yrd Mat Mat Peak Influence 352 | . 352 317 Initial 25 | . . 25 Average 145 | . 150 159 Maximum Alert Level 1 | . 1 1 Low Security (%) 56 | 100 52 57 Level 1 43 | . 47 42 Level 2 . | . . . Level 3 . | . . . Level 4 . | . . . Level 5 . | . . . High Security . | . . . Max Security . | . . . Squads Dispatched 5 | . 3 2 Investigation 2 | . 2 . Extermination . | . . . Reinforcement 3 | . 1 2 Assault . | . . . Garrison . | . . . Intercept . | . . . Searches Triggered . | . . . Construction Impeded . | . . . Haulers Reinforced . | . . . Active Scanning Responses . | . . . Cargo Convoy Interrupts . | . . . Stealth | -11 -10 -9 --------- Run | Yrd Mat Mat Distress Signals 6 | . 4 2 Communications Jammed . | . . . Distress Signals . | . . . Times Spotted 40 | . 21 19 Peak Tracking Total 7 | . 7 5 Tactical Retreats 3 | . 1 2 Traps | -11 -10 -9 ------- Run | Yrd Mat Mat Traps Triggered 2 | . 2 . Indirectly . | . . . Trap Hack Attempts . | . . . Triggered . | . . . Disarmed . | . . . Reprogrammed . | . . . Reused . | . . . Traps Extracted . | . . . Installed . | . . . Triggered . | . . . Machines | -11 -10 -9 ---------- Run | Yrd Mat Mat Machines Disabled 2 | . . 2 Max in Single Turn 1 | . . 1 Machines Repaired . | . . . Machines Dismantled . | . . . Machines Sabotaged . | . . . Overloaded Fab Kills . | . . . Hacking | -11 -10 -9 --------- Run | Yrd Mat Mat Machines Accessed 6 | . 3 3 Terminals 5 | . 2 3 Fabricators . | . . . Repair Stations 1 | . 1 . Recycling Units . | . . . Scanalyzers . | . . . Garrison Access . | . . . Total Hacks 14 | . 7 7 Successful 7 | . 5 2 Failed 7 | . 2 5 Catastrophic 3 | . . 3 Database Lockouts . | . . . Manual 9 | . 3 6 Terminals 11 | . 4 7 Fabricators . | . . . Repair Stations 3 | . 3 . Recycling Units . | . . . Scanalyzers . | . . . Garrison Access . | . . . Terminal Hacks 5 | . 3 2 Alert Level 2 | . 1 1 Unreport Threat 2 | . 1 1 Transport Status 1 | . 1 . Fabricator Hacks . | . . . Repair Station Hacks 2 | . 2 . Scan Component 1 | . 1 . Repair 1 | . 1 . Recycling Unit Hacks . | . . . Scanalyzer . | . . . Garrison Access Hacks . | . . . Unauthorized Hacks . | . . . Terminals . | . . . Fabricators . | . . . Repair Stations . | . . . Recycling Units . | . . . Scanalyzers . | . . . Garrison Access . | . . . Data Cores Recovered . | . . . Used . | . . . Hacking Detections 4 | . 1 3 Full Trace Events . | . . . Feedback Events . | . . . Feedback Blocked . | . . . Robot Schematics Acquired . | . . . Robots Built . | . . . Authchips . | . . . Time . | . . . Total Robot Build Rating . | . . . Part Schematics Acquired . | . . . Parts Built . | . . . Authchips . | . . . Time . | . . . Total Part Build Rating . | . . . Parts Repaired 1 | . 1 . Time 26 | . 26 . Parts Recycled . | . . . Recycled Matter . | . . . Retrieved Matter . | . . . Retrieved Components . | . . . Parts Scanalyzed . | . . . Part Schematics Acquired . | . . . Parts Damaged . | . . . Bothacking | -11 -10 -9 ------------ Run | Yrd Mat Mat Used RIF Installer . | . . . Robots Hacked . | . . . Non-combat . | . . . Combat . | . . . Robot Hacks Applied . | . . . Relay Couplers Released . | . . . Fabnet Peak Effective % . | . . . Robots Rewired . | . . . Allies Hacked . | . . . Hacks Repelled . | . . . Allies | -11 -10 -9 -------- Run | Yrd Mat Mat Total Allies . | . . . Largest Group . | . . . Highest-Rated Group . | . . . Highest-Rated Ally . | . . . Total Orders . | . . . Ally Attacks . | . . . Total Damage . | . . . Kills . | . . . Allies Corrupted . | . . . Allies Melted . | . . . Intel | -11 -10 -9 ------- Run | Yrd Mat Mat Robot Analysis Total . | . . . Derelict Logs Recovered . | . . . Drone Launches . | . . . Drone Recoveries . | . . . Exploration | -11 -10 -9 ------------- Run | Yrd Mat Mat Turns Passed 878 | 48 500 330 Spaces Moved 728 | 41 409 278 Core 7 | 7 . . Treads . | . . . Legs . | . . . Wheels 189 | 34 155 . Hover 532 | . 254 278 Flight . | . . . Fastest Speed 50 | 50 56 52 Average Speed 70 | 83 69 69 Slowest Speed 180 | 90 100 180 Overloaded Moves . | . . . Propulsion Burnouts . | . . . Robots Hopped . | . . . Cave-ins Triggered . | . . . Exploration Rate (%) 33 | 4 58 38 Regions Visited 2 Branch Regions . Pre-discovered Areas . | . . . Known Exits Taken . | . . . Unknown Exits Taken 2 | 1 1 . Scrap Searched . | . . . Spaces Dug . | . . . Terrain Destroyed . | . . . Melee . | . . . Projectile . | . . . AOE . | . . . Terrain Rammed . | . . . Walls Destroyed . | . . . Machines Disabled . | . . . Actions | -11 -10 -9 --------- Run | Yrd Mat Mat Total 941 | 54 537 350 Wait 60 | . 60 . Move 726 | 40 408 278 Hop . | . . . Pick Up 30 | 8 11 11 Fast Attach . | . . . Attach 15 | 6 3 6 Detach 1 | . . 1 Swap 10 | . 4 6 Drop 12 | . 2 10 Fire 85 | . 49 36 Melee . | . . . Ram 2 | . . 2 Kick . | . . . Crush . | . . . Escape Stasis . | . . . Rewire . | . . . Trap . | . . . Miscellaneous . | . . . Route ------- -11/Scrapyard -10/Materials (discovered 3 exits: *Mat x2 / [*Min]) -9/Materials (discovered 3 exits: [*Mat] / [*Min x2]) History --------- Turn | Location | Event 11 | -11/Scrapyard | Discovered new exit (range 16) 49 | -11/Scrapyard | Entered Materials 307 | -10/Materials | Build established: Mutant 366 | -10/Materials | Discovered new exit (range 14) 387 | -10/Materials | Discovered new exit (range 14) 459 | -10/Materials | Repaired Lgt. Ion Engine 504 | -10/Materials | Discovered new exit (range 8) 549 | -10/Materials | Entered another Materials area 549 | -9/Materials | Evolved 2 slots: Propulsion x1, Utility x1 602 | -9/Materials | Discovered new exit (range 8) 675 | -9/Materials | Discovered new exit (range 7) 712 | -9/Materials | Discovered new exit (range 10) 879 | -9/Materials | Self-destructed Last Messages --------------- Acquired Heat Sink. Slammed into T-07 Excavator. Acquired 7 matter. K-01 Serf collects debris. O-16 Technician sends out distress signal. O-16 Technician: "IFF HANDSHAKE FAILED. SECURING TERMINAL." Destroyed Datajack. K-01 Serf collects debris. Hover Unit destroyed. K-01 Serf collects debris. ALERT: Hostiles spotted, dispatching reinforcements to Terminal M008. S-10 Pest destroyed. Lgt. Ion Engine destroyed. Destroyed Flight Unit. S-10 Pest destroyed. Y-45 Defender destroyed. Broken Hover Unit destroyed. S-10 Pest destroyed. Map ----- +----------------------------------------------------+ | ????????????????????####+########+###### # | | ?????????????????????????????# ## # | | ?????????????????????????????# ## # | | ?????????????????????????????# ## / # | | ?????????????????????????????# ] "" ######### | | ?????????????????????????????# ] =""" #???????# | | ?????????????????????????????# = S" #???????# | | ?????????????????????????????# [""" #???????# | | ?????????????????????????????# [%""" #???????# | | ?????????????????????????????# % #???????# | | ?????????????????????????????###### ###?????### | | ???????????????????????????????????##???????#"" | | ????????????????????????????????????????????#"T | | ????????????????????????????????????????????#"" | | ????????????????????????????????????????????### | | ????????????????????????###########???????????# | | ?????????????????????##?#!!! / #???????????# | | ????????????????###### ##!!! #??????????## | | ????????????????# #!!! #??????????#T | | ????????????????# # #?????????### | | ????????????????# # #?????????# | | ????????????????# """ # #?????????# | | ????????????????# """ # ??????????# | | ????????????????# """ [#?? ????????????# | | ????????????????# ![#####/################# | | ????????????????# """ @%;=%[%g u%[=%!*+%== | | ????????????????# """ =%####= ##############/ [ | | ????????????????# """ [#??# #????????????#=== | | ????????????????# #??# #????????????# | | ????????????????######+##??# #????????????# | | ??????????????????????????? #????????????# | | ?????????????????????????? +????????????# [ | | ?????????????????????????? ""#????????????# | | ?????????????????????????] T"#????????????# | | ????????????????????????[] ""#????????????#### | | ???????????????????????? ????????????????? | | ??????????????????????? ? ??????????????????? | | ???????????????????????#####??????????????????? | | ??????????????????????????????????????????????? | | ??????????????????????????????????????????????? | | ??????????????????????????????????????????????? | | ??????????????????????????????????????????????? | | ??????????????????????????????????????????????? | | ??????????????????????????????????????????????? | | | | | | | | | | | | | +----------------------------------------------------+ Best States ------------- Heat Dissipation 38 Energy Generation 10 Energy Capacity 250 Matter Stores 300 Matter Capacity 300 Sight Range 16 Terrain Scan Density 10 Core Shielding 20 Evasion (%) 54 Item Schematics ----------------- None Robot Schematics ------------------ None Fabricated ------------ Nothing Alien Tech Used ----------------- None Achievements -------------- None Challenges ------------ None Game ------ Seed TractorMicrowarpScreen Manual? 0 Play Time 00:10:44 Cumulative 4.0 hours Start 2024.04.10 @ 19:14:59 End 2024.04.22 @ 19:14:50 Sessions 3 Manual Loads 0 Difficulty Rogue Special Mode None Game No. 17 Rogue 17 Adventurer 0 Explorer 0 Win Type - Total 0 Types 0/0/0/0/0/0/0/0/0 Lore% 4 Gallery% 11 Achievement% 12 Wizard Run 0 Options --------- Layout 1 ASCII 0 Keyboard 0 Movement Mouse Keybinds 0 Fullscreen 1 Font 24/Smallcaps Map View 50x35 Zoom Use 0% Tactical HUD 0 Map Filters NONE Filters NONE Steam 1 RUN: f6e6cac5-b362-447a-b196-ff130079a779